fUST/lending_fUST_20251006
["ID","MTS","AMOUNT","RATE_DAILY","PERIOD"]
[389621337,1759752643480,-372.0,0.00018842,2]
[389621339,1759752643491,-396.0,0.00019242,2]
[389621341,1759752643501,-234.17717776,0.00019595,2]
[389621343,1759752643511,-293.61728183,0.00019595,2]
[389621345,1759752643520,-533.6495537,0.00019595,2]
[389621347,1759752643532,-160.0,0.00019595,2]
[389621349,1759752643543,-300.0,0.00019605,2]
[389621352,1759752643552,-271.0,0.00019605,2]
[389621354,1759752643561,-1200.0,0.00019605,2]
[389621356,1759752643570,-160.0,0.00019606,2]
[389621357,1759752643579,-420.0,0.00019642,2]
[389621359,1759752643588,-261.76180643,0.000199,2]
[389621361,1759752643597,-500.0,0.00019973,2]
[389621363,1759752643606,-500.0,0.00019973,2]
[389621365,1759752643615,-500.0,0.00019973,2]
[389621367,1759752643625,-500.0,0.00019973,2]
[389621369,1759752643634,-63208.95746412,0.0002,7]
[389621372,1759752643653,-8232.80136987,0.0002,7]
[389622410,1759752653550,5000.0,0.0002012,9]
[389625338,1759752822762,2820.93781,0.00028767,120]
[389625339,1759752874154,5000.0,0.0002012,9]
[389625409,1759753832742,-300.0,0.00016013,2]
[389625411,1759753832752,-300.0,0.00016175,2]
[389625412,1759753832761,-164.33573277,0.00016338,2]
[389625413,1759753832771,-704.76426723,0.00016438,2]
[389625680,1759753840728,-705.08813277,0.00016438,2]
[389625682,1759753840738,-324.0,0.00016575,2]
[389625683,1759753840747,-348.0,0.00016975,2]
[389625685,1759753840756,-372.0,0.00017375,2]
[389625687,1759753840765,-396.0,0.00017775,2]
[389625689,1759753840774,-3188.46966823,0.00018033,2]
[389625691,1759753840783,-420.0,0.00018175,2]
[389625693,1759753840791,-257.14,0.000183,2]
[389625695,1759753840801,-610.0,0.00018392,2]
[389625697,1759753840810,-300.0,0.00018392,2]
[389625699,1759753840819,-300.0,0.00018393,2]
[389625700,1759753840827,-300.0,0.00018393,2]
[389625702,1759753840837,-300.0,0.00018393,2]
[389625704,1759753840846,-300.0,0.00018393,2]
[389625706,1759753840855,-300.0,0.00018393,2]
[389625708,1759753840863,-300.0,0.00018393,2]
[389625710,1759753840872,-300.0,0.00018393,2]
[389625712,1759753840881,-300.0,0.00018393,2]
[389625714,1759753840891,-300.0,0.00018393,2]
[389625716,1759753840901,-300.0,0.00018393,2]
[389625718,1759753840909,-300.0,0.00018393,2]
[389625720,1759753840918,-300.0,0.00018393,2]
[389625722,1759753840927,-300.0,0.00018393,2]
[389625724,1759753840937,-300.0,0.00018393,2]
[389625726,1759753840946,-300.0,0.00018393,2]
[389625728,1759753840955,-500.00526285,0.00018473,2]
[389625729,1759753840964,-500.0,0.00018499,2]
[389625731,1759753840973,-7153.78590759,0.000185,2]
[389625733,1759753840985,-1326.66510949,0.000185,2]
[389625736,1759753840997,-87535.02780838,0.000185,2]
[389625737,1759753841006,-2843.5193825,0.00018515,2]
[389625739,1759753841015,-156.0,0.00018521,3]
[389625741,1759753841024,-444.0,0.00018575,2]
[389625743,1759753841034,-4195.06113906,0.00018604,2]
[389625745,1759753841043,-500.0,0.0001875,2]
[389625747,1759753841053,-500.0,0.0001875,2]
[389625749,1759753841066,-500.0,0.0001875,2]
[389625751,1759753841074,-468.0,0.00018975,2]
[389625753,1759753841084,-500.0,0.00019125,2]
[389625755,1759753841093,-502.23076823,0.00019125,2]
[389625757,1759753841102,-500.0,0.00019125,2]
[389625759,1759753841111,-476.57571514,0.00019125,2]
[389625761,1759753841120,-250.0,0.00019288,2]
[389625763,1759753841129,-369.78176467,0.00019298,2]
[389625765,1759753841139,-1000.0,0.00019298,2]
[389625767,1759753841148,-1000.0,0.00019298,2]
[389625768,1759753841158,-492.0,0.00019375,2]
[389625770,1759753841167,-1462.94254067,0.00019561,2]
[389625772,1759753841176,-160.0,0.00019598,2]
[389625774,1759753841185,-234.17717776,0.00019598,2]
[389625776,1759753841194,-293.61728183,0.00019598,2]
[389625778,1759753841203,-1000.0,0.00019673,2]
[389625780,1759753841213,-415.83126983,0.00019673,2]
[389625782,1759753841222,-160.0,0.00019712,2]
[389625784,1759753841233,-516.0,0.00019775,2]
[389625786,1759753841247,-1500.0,0.00019846,2]
[389625788,1759753841257,-1500.0,0.00019846,2]
[389625789,1759753841267,-22684.34189752,0.0002,7]
[389625791,1759753841276,-160.0,0.0002,7]
[389625793,1759753841286,-293.61728183,0.0002,7]
[389625795,1759753841299,-524.49285161,0.0002,3]
[389625798,1759753841316,-420.0,0.0002006,2]
[389625800,1759753841326,-600.0,0.00020105,2]
[389625801,1759753841335,-268.55200815,0.00020174,2]
[389625803,1759753841344,-540.0,0.00020175,2]
[389625805,1759753841354,-1500.0,0.00020221,2]
[389625807,1759753841364,-179.9640072,0.00020305,2]
[389625809,1759753841374,-2000.0,0.00020394,2]
[389625811,1759753841387,-2000.0,0.00020394,2]
[389625813,1759753841397,-500.0,0.0002045,2]
[389625815,1759753841407,-564.0,0.00020575,2]
[389625817,1759753841418,-500.0,0.00020664,2]
[389625819,1759753841428,-500.0,0.00020664,2]
[389625821,1759753841437,-500.0,0.00020664,2]
[389625823,1759753841447,-500.0,0.00020725,2]
[389625825,1759753841457,-500.0,0.00020725,2]
[389625827,1759753841466,-579.81935686,0.00020729,2]
[389625829,1759753841475,-2000.0,0.00020769,2]
[389625831,1759753841485,-500.0,0.00020813,2]
[389625833,1759753841494,-160.0,0.00020886,2]
[389625835,1759753841504,-500.0,0.00020931,2]
[389625837,1759753841513,-2500.0,0.00020942,2]
[389625839,1759753841522,-2500.0,0.00020942,2]
[389625841,1759753841531,-588.0,0.00020975,2]
[389625843,1759753841540,-1000.0,0.00020998,2]
[389625844,1759753841550,-3204.773339,0.00021,2]
[389625846,1759753841559,-2927.0,0.0002101,2]
[389625848,1759753841568,-3086.713,0.00021135,2]
[389625850,1759753841577,-1000.0,0.00021212,2]
[389625852,1759753841586,-1000.0,0.00021212,2]
[389625854,1759753841595,-1000.0,0.00021212,2]
[389625856,1759753841603,-150.0,0.00021252,2]
[389625858,1759753841612,-150.0,0.00021252,2]
[389625879,1759753841813,-150.0,0.00021252,2]
[389625882,1759753841833,-1000.0,0.00021273,2]
[389625884,1759753841842,-1000.0,0.00021273,2]
[389625886,1759753841852,-1023.608451,0.000213,2]
[389625888,1759753841861,-1238.11805828,0.00021317,2]
[389625890,1759753841870,-612.0,0.00021375,2]
[389625892,1759753841880,-980.0,0.00021399,2]
[389625893,1759753841889,-2158.0,0.00021399,2]
[389625895,1759753841898,-630.0,0.00021399,2]
[389625897,1759753841907,-422.977,0.00021399,2]
[389625899,1759753841916,-411.084,0.00021399,2]
[389625901,1759753841925,-260.0,0.00021434,2]
[389625903,1759753841934,-9272.07011301,0.00021446,2]
[389625905,1759753841943,-3000.0,0.0002149,2]
[389625907,1759753841953,-3000.0,0.0002149,2]
[389625909,1759753841962,-637.82,0.00021532,3]
[389625911,1759753841971,-318.91,0.00021532,3]
[389625913,1759753841980,-159.45,0.00021532,3]
[389625915,1759753841989,-478.4,0.00021532,3]
[389625917,1759753841999,-41129.17386932,0.00021542,2]
[389626065,1759753843664,-315.98676429,0.00016274,2]
[389626069,1759753843692,-389.10136848,0.00016274,2]
[389626071,1759753843701,-870.58421552,0.00021542,2]
[389626074,1759753843717,-1726.2178708,0.00021542,2]
[389626350,1759753846614,-436.34609954,0.00021542,2]
[389626469,1759753882687,167.590633,0.00010025,2]
[389626470,1759753882891,167.590633,0.00013367,2]
[389626477,1759753958759,208.23221076,0.00028767,120]
[389626478,1759754062181,5000.0,0.0002012,9]
[389626480,1759754084687,5000.0,0.0002012,9]
[389626481,1759754132876,154.928,0.00028767,120]
[389626482,1759754304024,5000.0,0.0002012,9]
[389626483,1759754344691,-170.45,0.0001589,2]
[389626484,1759754347475,-277.36789385,0.0001589,2]
[389626485,1759754349712,-260.88,0.0001589,2]
[389626486,1759754351101,-58.89273915,0.0001589,2]
[389626487,1759754352691,2000.0,0.00028767,120]
[389626488,1759754359562,2000.0,0.00028767,120]
[389626489,1759754366149,2000.0,0.00028767,120]
[389626490,1759754372551,2000.0,0.00028767,120]
[389626491,1759754395011,1999.0,0.00028767,120]
[389626497,1759754524314,5000.0,0.0002012,9]
[389626498,1759754547352,767.590633,0.00015731,2]
[389626499,1759754547966,-434.36038051,0.0001589,2]
[389626500,1759754549851,-227.88079806,0.0001589,2]
[389626501,1759754551280,-105.34945443,0.0001589,2]
[389626502,1759754563318,-216.95958221,0.0001584,2]
[389626503,1759754565617,-203.91672331,0.0001584,2]
[389626504,1759754569004,-211.16811769,0.0001584,2]
[389626505,1759754570989,579.12369448,0.00015682,2]
[389626506,1759754571541,-366.02684716,0.0001584,2]
[389626507,1759754575299,-1.92872963,0.0001584,2]
[389626508,1759754579654,1799.07125683,0.000261,50]
[389626509,1759754587994,-354.78679089,0.0001584,2]
[389626510,1759754591729,-189.40741454,0.0001584,2]
[389626511,1759754595706,455.80579457,0.00015682,2]
[389626512,1759754595781,-300.0,0.0001584,2]
[389626513,1759754598073,-155.80579457,0.0001584,2]
[389626514,1759754612605,1000.0,0.00015682,2]
[389626515,1759754620916,1000.0,0.00015682,2]
[389626516,1759754636979,425.83471567,0.00015682,2]
[389626519,1759754646271,1000.0,0.00015682,2]
[389626520,1759754669612,1000.0,0.00015682,2]
[389626521,1759754692239,1000.0,0.00015682,2]
[389626522,1759754714858,1000.0,0.00015682,2]
[389626523,1759754737673,1000.0,0.00015682,2]
[389626524,1759754738005,-186.22620777,0.0001584,2]
[389626525,1759754760208,813.77379223,0.00015682,2]
[389626528,1759754782736,813.77379223,0.00015682,2]
[389626531,1759754807279,490.8219053,0.00015682,2]
[389626532,1759754807303,809.1780947,0.00015682,2]
[389626533,1759754830011,1300.0,0.00015682,2]
[389626536,1759754853287,1300.0,0.00015682,2]
[389626537,1759754875683,1300.0,0.00015682,2]
[389626538,1759754877757,1521.57343865,0.000287,120]
[389626539,1759754898404,1300.0,0.00015682,2]
[389626540,1759754921080,1300.0,0.00015682,2]
[389626541,1759754943723,1600.0,0.00015682,2]
[389626542,1759754966266,1090.8319053,0.00015682,2]
[389626543,1759754966290,509.1680947,0.00015682,2]
[389626544,1759754975266,1600.0,0.00015682,2]
[389626545,1759754991414,300.0,0.00015682,2]
[389626546,1759754999313,300.0,0.00015682,2]
[389626547,1759755007996,300.0,0.00015682,2]
[389626548,1759755016327,300.0,0.00015682,2]
[389626549,1759755024246,300.0,0.00015682,2]
[389626613,1759755031853,-300.0,0.0001584,2]
[389626615,1759755031864,-1000.0,0.00016,2]
[389626617,1759755031873,-324.0,0.0001624,2]
[389626619,1759755031883,-1413.041828,0.00016285,2]
[389626621,1759755031893,-348.0,0.0001664,2]
[389626623,1759755031902,-167.590633,0.00016709,2]
[389626624,1759755031911,-372.0,0.0001704,2]
[389626627,1759755031921,-396.0,0.0001744,2]
[389626628,1759755031931,-357.4345042,0.00017499,2]
[389626631,1759755031940,-3418.60065132,0.00017596,2]
[389626633,1759755031955,-1448.96942432,0.00017596,2]
[389626690,1759755032447,300.0,0.00015682,2]
[389626904,1759755037730,-1083.99525696,0.00017596,2]
[389626905,1759755037789,-451.40779907,0.00017596,2]
[389626906,1759755037801,-390.6053552,0.00017596,2]
[389626907,1759755037812,-266.8,0.00017596,2]
[389626908,1759755037844,-1000.9999859,0.00017596,2]
[389626909,1759755037855,-465.5098032,0.00017596,2]
[389626933,1759755040110,-187.98510327,0.00017596,2]
[389626934,1759755040122,-11443.24920002,0.00017596,2]
[389626950,1759755042942,-35514.9414065,0.0001742,2]
[389626952,1759755042954,-13076.1004111,0.00017596,2]
[389626955,1759755042971,-16765.77700964,0.00017596,2]
[389626957,1759755042989,-293.61728183,0.00017596,2]
[389626960,1759755043002,-160.0,0.00017596,2]
[389626962,1759755043013,-300.0,0.00017598,2]
[389626964,1759755043026,-300.0,0.00017598,2]
[389626966,1759755043037,-300.0,0.00017598,2]
[389626968,1759755043050,-300.0,0.00017598,2]
[389626970,1759755043060,-300.0,0.00017598,2]
[389626973,1759755043071,-1200.0,0.00017598,2]
[389626975,1759755043083,-500.0,0.00017599,2]
[389626977,1759755043095,-151.0,0.00017801,2]
[389626980,1759755043107,-170.40948365,0.00017801,2]
[389626983,1759755043118,-151.0,0.00017801,2]
[389626985,1759755043128,-151.0,0.00017801,2]
[389626987,1759755043139,-151.0,0.00017801,2]
[389626989,1759755043149,-151.0,0.00017801,2]
[389626991,1759755043161,-151.0,0.00017801,2]
[389626994,1759755043172,-151.0,0.00017801,2]
[389626996,1759755043183,-151.0,0.00017801,2]
[389626998,1759755043194,-157.12300033,0.00017801,2]
[389627000,1759755043208,-420.0,0.0001784,2]
[389627003,1759755043219,-500.0,0.00017873,2]
[389627005,1759755043231,-500.0,0.00018123,2]
[389627007,1759755043243,-500.0,0.00018123,2]
[389627010,1759755043255,-500.0,0.00018129,2]
[389627012,1759755043267,-500.0,0.00018147,2]
[389627014,1759755043279,-500.0,0.00018147,2]
[389627016,1759755043289,-500.0,0.00018147,2]
[389627018,1759755043299,-318.94749448,0.00018233,2]
[389627021,1759755043308,-444.0,0.0001824,2]
[389627023,1759755043319,-160.0,0.00018431,2]
[389627025,1759755043329,-500.0,0.00018473,2]
[389627027,1759755043341,-162.0,0.00018548,3]
[389627030,1759755043353,-285.91049983,0.00018604,2]
[389627031,1759755043365,-303.38413973,0.0001864,2]
[389627032,1759755043376,-500.0,0.0001867,2]
[389627033,1759755043385,-500.0,0.0001867,2]
[389627034,1759755043396,-500.0,0.0001867,2]
[389627035,1759755043407,-500.0,0.0001867,2]
[389627036,1759755043417,-500.0,0.0001867,2]
[389627037,1759755043427,-605.99834035,0.0001867,2]
[389627038,1759755043438,-500.0,0.0001867,2]
[389627039,1759755043449,-500.0,0.0001867,2]
[389627040,1759755043459,-500.0,0.0001867,2]
[389627041,1759755043469,-276.74048352,0.0001867,2]
[389627042,1759755043480,-500.0,0.0001867,2]
[389627043,1759755043491,-500.0,0.0001867,2]
[389627044,1759755043505,-500.0,0.0001867,2]
[389627045,1759755043517,-227.25988396,0.0001867,2]
[389627046,1759755043528,-500.0,0.0001867,2]
[389627047,1759755043538,-500.0,0.0001867,2]
[389627048,1759755043549,-500.0,0.0001867,2]
[389627049,1759755043559,-500.0,0.0001867,2]
[389627050,1759755043570,-500.0,0.0001867,2]
[389627051,1759755043581,-500.0,0.0001867,2]
[389627052,1759755043591,-500.0,0.0001867,2]
[389627053,1759755043602,-425.47295206,0.0001867,2]
[389627054,1759755043612,-500.0,0.0001867,2]
[389627055,1759755043626,-500.0,0.0001867,2]
[389627056,1759755043641,-500.0,0.0001867,2]
[389627057,1759755043652,-500.0,0.0001867,2]
[389627058,1759755043663,-500.0,0.0001867,2]
[389627059,1759755043673,-500.0,0.0001867,2]
[389627060,1759755043683,-500.0,0.0001867,2]
[389627061,1759755043694,-500.0,0.0001867,2]
[389627062,1759755043705,-500.0,0.0001867,2]
[389627063,1759755043716,-500.0,0.0001867,2]
[389627064,1759755043727,-500.0,0.0001867,2]
[389627065,1759755043739,-500.0,0.0001867,2]
[389627066,1759755043761,-500.0,0.0001867,2]
[389627067,1759755043773,-500.0,0.0001867,2]
[389627068,1759755043784,-500.0,0.0001867,2]
[389627069,1759755043795,-500.0,0.0001867,2]
[389627070,1759755043807,-500.0,0.0001867,2]
[389627071,1759755043818,-500.0,0.0001867,2]
[389627072,1759755043829,-500.0,0.0001867,2]
[389627073,1759755043840,-500.0,0.0001867,2]
[389627074,1759755043851,-500.0,0.0001867,2]
[389627075,1759755043863,-500.0,0.0001867,2]
[389627076,1759755043874,-500.0,0.0001867,2]
[389627077,1759755043885,-519.9553836,0.0001867,2]
[389627078,1759755043895,-500.0,0.0001867,2]
[389627079,1759755043906,-500.0,0.0001867,2]
[389627080,1759755043916,-408.59721073,0.0001867,2]
[389627081,1759755044011,-91.40278927,0.0001867,2]
[389627082,1759755044021,-500.0,0.0001867,2]
[389627083,1759755044032,-500.0,0.0001867,2]
[389627084,1759755044043,-500.0,0.0001867,2]
[389627085,1759755044054,-500.0,0.0001867,2]
[389627086,1759755044065,-174.4717871,0.0001867,2]
[389627087,1759755044075,-500.0,0.0001867,2]
[389627088,1759755044088,-500.0,0.0001867,2]
[389627089,1759755044099,-500.0,0.0001867,2]
[389627090,1759755044110,-500.0,0.0001867,2]
[389627091,1759755044122,-500.0,0.0001867,2]
[389627092,1759755044132,-194.86386062,0.0001867,2]
[389627093,1759755044143,-1000.0,0.00018671,2]
[389627094,1759755044155,-736.16358157,0.00018671,2]
[389627095,1759755044166,-1000.0,0.00018677,2]
[389627096,1759755044177,-1000.0,0.00018695,2]
[389627097,1759755044187,-1000.0,0.00018695,2]
[389627098,1759755044201,-198.63,0.00018768,2]
[389627099,1759755044211,-372.06,0.0001879,3]
[389627100,1759755044221,-310.05,0.0001879,3]
[389627101,1759755044232,-155.02,0.0001879,3]
[389627102,1759755044242,-465.09,0.0001879,3]
[389627103,1759755044255,-28226.46238572,0.000188,2]
[389627104,1759755044269,-1000.0,0.000188,2]
[389627105,1759755044283,-1647.82891444,0.000188,2]
[389627111,1759755045923,-234.17717776,0.00018431,2]
[389627112,1759755045934,-18820.52687454,0.000188,2]
[389627113,1759755114286,6090.8419053,0.00015,2]
[389627114,1759755114506,2484.30637389,0.00015,2]
[389627120,1759755327125,174.716579,0.00017881,120]
[389627123,1759755515003,305.3394309,0.0002012,9]
[389627142,1759755695720,819.65,0.00028767,120]
[389627144,1759755836072,3822.74236768,0.0002012,9]
[389627145,1759755845092,4161.51,0.0002012,9]
[389627148,1759756117793,2924.0,0.0001579,2]
[389627150,1759756231053,272.24909621,0.00028,120]
[389627722,1759756240037,-150.0,0.00017346,2]
[389627724,1759756240047,-2990.4344207,0.00017551,2]
[389627726,1759756240056,-1000.0,0.00017659,2]
[389627728,1759756240065,-186.958747,0.00017698,2]
[389627730,1759756240074,-174.716579,0.00017881,2]
[389627732,1759756240083,-293.61728183,0.00018367,2]
[389627733,1759756240092,-160.0,0.0001837,2]
[389627734,1759756240102,-234.17717776,0.0001837,2]
[389627736,1759756240112,-160.0,0.00018371,2]
[389627738,1759756240121,-1025.3752254,0.00018762,2]
[389627739,1759756240129,-312.75519114,0.00018764,2]
[389627740,1759756240138,-315.0125792,0.00018764,2]
[389627741,1759756240147,-209.9986254,0.00018765,2]
[389627743,1759756240156,-300.0,0.00018799,2]
[389627746,1759756240165,-13836.95417257,0.000188,2]
[389627749,1759756240176,-6608.29016643,0.000188,2]
[389627753,1759756240189,-1200.0,0.000188,2]
[389627756,1759756240202,-308.52672039,0.00018864,2]
[389627757,1759756240215,-500.0,0.00018864,2]
[389627758,1759756240228,-358.58443155,0.00018864,2]
[389627759,1759756240240,-408.27464301,0.00018864,2]
[389627760,1759756240250,-335.55059818,0.00018864,2]
[389627761,1759756240262,-500.0,0.00018864,2]
[389627762,1759756240274,-577.20709563,0.00018864,2]
[389627763,1759756240285,-500.0,0.00018864,2]
[389627764,1759756240297,-500.0,0.00018864,2]
[389627765,1759756240310,-500.0,0.00018864,2]
[389627766,1759756240322,-500.0,0.00018864,2]
[389627767,1759756240334,-500.0,0.00018864,2]
[389627768,1759756240345,-500.0,0.00018864,2]
[389627769,1759756240358,-500.0,0.00018864,2]
[389627770,1759756240370,-500.0,0.00018864,2]
[389627771,1759756240383,-339.56728496,0.00018864,2]
[389627772,1759756240394,-500.0,0.00018864,2]
[389627773,1759756240406,-500.0,0.00018864,2]
[389627774,1759756240416,-500.0,0.00018864,2]
[389627775,1759756240428,-300.0,0.00018868,2]
[389627776,1759756240438,-300.0,0.00018868,2]
[389627777,1759756240451,-300.0,0.00018868,2]
[389627778,1759756240465,-300.0,0.00018868,2]
[389627779,1759756240476,-300.0,0.00018868,2]
[389627780,1759756240488,-300.0,0.00018868,2]
[389627781,1759756240499,-300.0,0.00018868,2]
[389627782,1759756240509,-300.0,0.00018868,2]
[389627783,1759756240519,-300.0,0.00018868,2]
[389627784,1759756240531,-300.0,0.00018868,2]
[389627785,1759756240545,-300.0,0.00018868,2]
[389627786,1759756240556,-300.0,0.00018868,2]
[389627787,1759756240568,-300.0,0.00018868,2]
[389627788,1759756240581,-300.0,0.00018868,2]
[389627789,1759756240592,-300.0,0.00018868,2]
[389627790,1759756240604,-600.0,0.00018868,2]
[389627791,1759756240619,-303.00000303,0.000189,2]
[389627792,1759756240631,-303.00000303,0.00019089,2]
[389627793,1759756240644,-379.0865448,0.00019242,2]
[389627794,1759756240656,-297.5145665,0.00019242,2]
[389627795,1759756240666,-587.7798688,0.00019242,2]
[389627796,1759756240676,-587.7798688,0.00019242,2]
[389627797,1759756240686,-303.00000303,0.00019278,2]
[389627798,1759756240696,-303.00000303,0.00019467,2]
[389627799,1759756240708,-1000.0,0.000195,2]
[389627800,1759756240722,-303.00000303,0.00019656,2]
[389627801,1759756240733,-1300.0,0.000198,3]
[389627802,1759756240747,-265.27035189,0.00019845,4]
[389627803,1759756240757,-203.67954479,0.0002,2]
[389627804,1759756240767,-1000.0,0.0002,2]
[389627805,1759756240778,-497.999999,0.0002,3]
[389627806,1759756240789,-167.590633,0.00020051,2]
[389627807,1759756240801,-587.7798688,0.00020064,2]
[389627808,1759756240817,-1012.01779832,0.00020395,2]
[389627809,1759756240830,-533.17600002,0.00020395,2]
[389627850,1759756243144,-1381.80620166,0.00020395,2]
[389627851,1759756243155,-312.75519114,0.00020411,2]
[389627852,1759756243166,-227.97929865,0.00020416,2]
[389627853,1759756243177,-911.00527742,0.00020416,2]
[389627854,1759756243188,-149.42544284,0.00020495,2]
[389627855,1759756243202,-270.57455716,0.00020495,2]
[389627856,1759756243212,-1000.0,0.000205,2]
[389627858,1759756243223,-179.9820018,0.00020533,2]
[389627860,1759756243234,-720.0,0.00020755,2]
[389627862,1759756243244,-93.04344104,0.0002077,2]
[389627938,1759756245981,-73.62322564,0.0002077,2]
[389627940,1759756245991,-166.66666666,0.00020775,2]
[389627942,1759756246000,-166.66666666,0.0002078,2]
[389627943,1759756246009,-388.65719743,0.000208,4]
[389627944,1759756246020,-376.68,0.000208,4]
[389627945,1759756246091,-614.66280257,0.000208,4]
[389627946,1759756246100,-155.02,0.0002087,3]
[389627947,1759756246109,-465.08,0.0002087,3]
[389627948,1759756246118,-9501.56,0.0002087,10]
[389627949,1759756246127,-151.0,0.0002087,2]
[389627950,1759756246137,-151.0,0.0002087,2]
[389627951,1759756246146,-151.0,0.0002087,2]
[389627953,1759756246155,-7917.97,0.0002087,10]
[389627954,1759756246164,-500.0,0.00020873,2]
[389627955,1759756246174,-415.95746061,0.00020873,2]
[389627956,1759756246183,-501.98365039,0.00020873,2]
[389627957,1759756246192,-500.0,0.00020873,2]
[389627958,1759756246201,-500.0,0.00020873,2]
[389627959,1759756246210,-500.0,0.00020873,2]
[389627960,1759756246219,-246.68221403,0.00020879,2]
[389627961,1759756246229,-351.38940037,0.00020879,2]
[389627962,1759756246238,-102125.75649803,0.0002088,2]
[389627963,1759756308102,5000.0,0.00025,30]
[389627965,1759756462907,500.0,0.0002876,120]
[389627966,1759756934643,2194.0,0.00028767,120]
[389627967,1759756990843,319.69,0.00028767,120]
[389628047,1759757432606,-1078.39748926,0.00016438,2]
[389628048,1759757432617,-260.96229074,0.00016438,2]
[389628049,1759757432625,-97.99115512,0.00019348,2]
[389628360,1759757438106,-152.00884488,0.00019348,2]
[389628361,1759757438116,-293.61728183,0.00019373,2]
[389628362,1759757438125,-80.8434181,0.00019373,2]
[389628363,1759757438136,-79.1565819,0.00019373,2]
[389628364,1759757438145,-234.17717776,0.00019373,2]
[389628365,1759757438155,-160.0,0.00019388,2]
[389628366,1759757438164,-123.05696191,0.00020537,2]
[389628367,1759757438208,-205.94303809,0.00020537,2]
[389628368,1759757438223,-329.0,0.00020537,2]
[389628369,1759757438232,-5850.0,0.00020753,2]
[389628370,1759757438242,-719.9328948,0.00020786,2]
[389628371,1759757438252,-389.795991,0.000208,2]
[389628372,1759757438263,-1200.0,0.00020803,2]
[389628373,1759757438272,-418.72617591,0.00020804,2]
[389628374,1759757438282,-437.71715188,0.00020895,2]
[389628375,1759757438292,-500.0,0.00020903,2]
[389628376,1759757438304,-204.396365,0.00020903,2]
[389628377,1759757438313,-300.0,0.00020903,2]
[389628378,1759757438323,-1929.28614662,0.00020904,2]
[389628379,1759757438334,-228.71385338,0.00020904,2]
[389628380,1759757438343,-604.28610022,0.00020904,2]
[389628448,1759757440315,-25.71389978,0.00020904,2]
[389628450,1759757440325,-299.05734098,0.00020904,2]
[389628452,1759757440337,-110.94265902,0.00020904,2]
[389628454,1759757440346,-411.084,0.00020904,2]
[389628456,1759757440355,-429.51883557,0.00021,2]
[389628461,1759757440385,-22.33593643,0.00021,2]
[389628463,1759757440394,-180.0,0.00021086,2]
[389628465,1759757440406,-300.0,0.00021297,20]
[389628467,1759757440415,-300.0,0.00021297,20]
[389628469,1759757440425,-300.0,0.00021297,20]
[389628471,1759757440434,-62.16327725,0.00021297,20]
[389628515,1759757657877,50000.0,0.00025,30]
[389628516,1759757880519,168.94,0.00015984,7]
[389628517,1759757880839,168.92,0.00015984,7]
[389628518,1759757946207,2353.4839004,0.0002876,120]
[389628522,1759758422189,3164.0,0.00028767,120]
[389628606,1759758632529,-150.0,0.00019321,2]
[389628608,1759758632539,-229.19749853,0.00019321,2]
[389628611,1759758632551,-1791.61543033,0.00019321,2]
[389628613,1759758632560,-202.43456967,0.00019998,2]
[389628615,1759758632576,-97.56543033,0.00019998,2]
[389628617,1759758632594,-1200.0,0.00019998,2]
[389628619,1759758632604,-1200.0,0.00019999,2]